Cogmind - Beta 9.3 @@@ ROGUE MODE // 2020.01.06 @ 04:20:06 Player: Klin Result: Destroyed by Y-45 Defender with Beam Rifle Performance ------------- Evolutions (1) 500 Regions Visited (2) 400 Robots Destroyed (33) 165 Value Destroyed (825) 825 Prototype IDs (2) 40 Alien Tech Used (0) 0 Bonus (0) 0 TOTAL SCORE: 1930 Bonus ------- None Cogmind --------- Core Integrity 0/400 Matter 238/300 Energy 100/100 System Corruption 1% Temperature Cool (9) Movement Core (150) Ox2 Location -9/Materials Parts ------- > --- POWER (1) -------- (None) > --- PROPULSION (2) --- (None) > --- UTILITY (4) ------ Small Storage Unit Salvage Targeting Computer Improved Targeting Computer > --- WEAPON (2) ------- Heavy Assault Rifle > --- INVENTORY (6) ---- Ion Engine Improved Ion Engine Light Treads Aluminum Leg Aluminum Leg Peak State ------------ > --- POWER ------------ Light Ion Engine > --- PROPULSION ------- Aluminum Leg Aluminum Leg > --- UTILITY ---------- Small Storage Unit Salvage Targeting Computer Medium Armor Plating Shield Generator > --- WEAPON ----------- Heavy Assault Rifle Plasma Cutter > --- INVENTORY -------- Light Treads Medium Laser Light Assault Rifle Shotgun Maul [Rating: 14] Favorites ----------- Power Improved Ion Engine Engine Improved Ion Engine Propulsion Aluminum Leg Treads Light Treads Leg Aluminum Leg Utility Small Storage Unit Device Tractor Beam Storage Small Storage Unit Processor Salvage Targeting Computer Protection Light Armor Plating Weapon Shotgun Energy Gun Medium Laser Ballistic Gun Shotgun Launcher Grenade Launcher Special Weapon Plasma Cutter Impact Weapon Maul Build | -11 -10 -9 ------- Run | Scr Mat Mat Slots Evolved 2 | . . 2 Power . | . . . Propulsion . | . . . Utility 2 | . . 2 Weapon . | . . . Parts Attached 51 | 7 13 31 Power 6 | 2 1 3 Engine 6 | 2 1 3 Core . | . . . Reactor . | . . . Propulsion 15 | 2 4 9 Treads 3 | . . 3 Leg 12 | 2 4 6 Wheel . | . . . Hover . | . . . Flight . | . . . Utility 11 | 1 1 9 Device 2 | . . 2 Storage 3 | 1 . 2 Processor 3 | . 1 2 Hackware . | . . . Protection 3 | . . 3 Artifact . | . . . Weapon 19 | 2 7 10 Energy Gun 8 | 2 4 2 Energy Cannon . | . . . Ballistic Gun 5 | . 1 4 Ballistic Cannon . | . . . Launcher 3 | . 2 1 Special Weapon 1 | . . 1 Impact Weapon 2 | . . 2 Slashing Weapon . | . . . Piercing Weapon . | . . . Special Melee Weapon . | . . . Unidentified Prototypes . | . . . Parts Lost 22 | . 5 17 Power 3 | . 1 2 Propulsion 6 | . 1 5 Utility 5 | . . 5 Weapon 8 | . 3 5 Highest Loss Streak 7 | . 3 7 Average Slot Usage (%) 86 | . 82 87 Engine 10 | . 12 10 Treads 4 | . . 6 Leg 17 | . 26 14 Device 2 | . . 3 Storage 12 | . 14 12 Processor 11 | . 8 13 Protection 5 | . . 7 Energy Gun 4 | . 9 2 Ballistic Gun 13 | . 7 15 Launcher 1 | . 3 . Naked Turns . | . . . Heaviest Build 24 | 13 14 24 Greatest Support 40 | 20 20 40 Greatest Overweight (x) 4 | . 3 4 Average Overweight (x) . | . . . Largest Inventory Capacity 8 | 6 6 8 Average Capacity 6 | 4 6 6 Most Carried 6 | 3 6 6 Average Carried 3 | . 3 4 Final Capacity 6 | 6 6 6 Final Carried 5 | . . 5 Class Distribution -------------------- 68% | Scavenger-Mutant 31% | Mutant Dominant Class ---------------- Scavenger-Mutant | -10/Materials Scavenger-Mutant | -9/Materials Resources | -11 -10 -9 ----------- Run | Scr Mat Mat Matter Collected 993 | 197 163 633 Remotely 103 | . . 103 Salvage Created 1218 | . 269 949 Parts 78 | . 21 57 Haulers Intercepted . | . . . Recyclers Shooed 1 | . 1 . Parts Field Recycled . | . . . Retrieved Matter . | . . . Parts Self-Destructed . | . . . Prevented . | . . . Kills | -11 -10 -9 ------- Run | Scr Mat Mat Combat Hostiles Destroyed 23 | . 7 16 Guns 16 | . 1 15 AOE 6 | . 6 . Classes Destroyed 8 | . 4 4 Worker 1 | . . 1 Builder 3 | . 3 . Recycler 3 | . 1 2 Watcher 3 | . . 3 Swarmer 5 | . 3 2 Grunt 12 | . 4 8 Duelist 1 | . . 1 Sentry 5 | . . 5 Best Kill Streak 8 | . 8 5 Combat Bots Only 6 | . 6 3 Max Kills in Single Turn 3 | . 3 2 Gunslinging . | . . . Exploded 3 | . 3 . Melee . | . . . Uniques/NPCs Destroyed . | . . . Combat | -11 -10 -9 -------- Run | Scr Mat Mat Damage Taken 2635 | . 498 2137 Core 526 | . 120 406 Absorbed by Shields 62 | . . 62 Core Remaining (%) 76 | 100 52 . Volleys Fired 114 | . 23 91 Largest 2 | . 2 2 Hottest 100 | . 100 79 Shots Fired 165 | . 30 135 Gun 154 | . 24 130 Cannon . | . . . Launcher 9 | . 6 3 Special 2 | . . 2 Kinetic 118 | . 7 111 Thermal 38 | . 17 21 Explosive 6 | . 6 . Electromagnetic 3 | . . 3 Robot Hit Streak 13 | . 9 13 Robot Miss Streak 8 | . 2 8 Penetration Max . | . . . Secondary Targets 1 | . . 1 Max Gunslinging Chain 1 | . . 1 Shots Hit Robots 118 | . 22 96 Core Hits 55 | . 17 38 Critical Hits 1 | . . 1 Critical Kills 1 | . . 1 Critical Parts Destroyed . | . . . Melee Attacks 10 | . . 10 Impact 10 | . . 10 Slashing . | . . . Piercing . | . . . Sneak Attacks . | . . . Combat Hostiles . | . . . Follow-up Attacks . | . . . Damage Inflicted 2164 | . 639 1525 Guns 1501 | . 217 1284 Cannons . | . . . Explosions 481 | . 419 62 Melee 158 | . . 158 Ramming 12 | . 3 9 Kinetic 1185 | . 53 1132 Thermal 328 | . 164 164 Explosive 419 | . 419 . Electromagnetic 62 | . . 62 Impact 158 | . . 158 Slashing . | . . . Piercing . | . . . Highest Corruption 1 | . . 1 Average Corruption 1 | . . 1 Corruption Purged . | . . . Effects 1 | . . 1 Targeting Errors 1 | . . 1 Overload Shots . | . . . Overflow Damage 37 | . 20 17 Projectiles . | . . . Explosions 20 | . 20 . Melee 17 | . . 17 Knockbacks 1 | . . 1 Impact 1 | . . 1 Kinetic . | . . . Secondary . | . . . Self-Inflicted Damage 109 | . 109 . Shots 4 | . 4 . Rammed 5 | . 4 1 Targets Rammed 8 | . 6 2 Kicked 3 | . 2 1 Crushed . | . . . Highest Temperature 298 | . 298 189 Average Temperature 77 | . 129 50 Received Heat Transfer 876 | . 165 711 Siege Activations . | . . . Robots Corrupted . | . . . Combat Hostiles . | . . . Parts Fried 1 | . . 1 Impact Corruptions 1 | . . 1 Robots Melted . | . . . Combat Hostiles . | . . . Parts Melted 2 | . 2 . Heat Transferred 925 | . 481 444 Parts Sabotaged . | . . . Parts Stolen . | . . . Parts Stripped . | . . . Power Chain Reactions . | . . . Missiles Intercepted . | . . . Alert | -11 -10 -9 ------- Run | Scr Mat Mat Peak Influence 174 | . 155 174 Average Influence 99 | . 107 103 Maximum Alert Level . | . . . Low Security (%) 100 | 100 100 100 Level 1 . | . . . Level 2 . | . . . Level 3 . | . . . Level 4 . | . . . Level 5 . | . . . High Security . | . . . Max Security . | . . . Squads Dispatched 2 | . . 2 Investigation 1 | . . 1 Extermination . | . . . Reinforcement 1 | . . 1 Assault . | . . . Garrison . | . . . Intercept . | . . . Construction Impeded . | . . . Haulers Reinforced . | . . . Stealth | -11 -10 -9 --------- Run | Scr Mat Mat Distress Signals 2 | . . 2 Communications Jammed . | . . . Distress Signals . | . . . Times Spotted 33 | . 7 26 Peak Tracking Total 6 | . 6 4 Tactical Retreats . | . . . Traps | -11 -10 -9 ------- Run | Scr Mat Mat Traps Triggered 2 | . 1 1 Indirectly . | . . . Trap Hack Attempts . | . . . Triggered . | . . . Disarmed . | . . . Reprogrammed . | . . . Reused . | . . . Traps Extracted . | . . . Installed . | . . . Triggered . | . . . Machines | -11 -10 -9 ---------- Run | Scr Mat Mat Machines Disabled . | . . . Max in Single Turn . | . . . Machines Sabotaged . | . . . Garrisons Compromised . | . . . Overloaded Fab Kills . | . . . Fab Network Shutdowns . | . . . Hacking | -11 -10 -9 --------- Run | Scr Mat Mat Machines Accessed 3 | . 1 2 Terminals 1 | . . 1 Fabricators . | . . . Repair Stations . | . . . Recycling Units 1 | . 1 . Scanalyzers 1 | . . 1 Garrison Access . | . . . Total Hacks 16 | . 10 6 Successful 15 | . 9 6 Failed 1 | . 1 . Catastrophic . | . . . Database Lockouts . | . . . Manual . | . . . Terminals 3 | . . 3 Fabricators . | . . . Repair Stations . | . . . Recycling Units 10 | . 10 . Scanalyzers 3 | . . 3 Garrison Access . | . . . Terminal Hacks 3 | . . 3 Prototype ID Bank 1 | . . 1 Hauler Manifests 1 | . . 1 Zone Layout 1 | . . 1 Fabricator Hacks . | . . . Repair Station Hacks . | . . . Recycling Unit Hacks 9 | . 9 . Recycle Component 6 | . 6 . Process 1 | . 1 . Retrieve Matter 1 | . 1 . Retrieve Components 1 | . 1 . Scanalyzer 3 | . . 3 Insert Component 2 | . . 2 Analyze 1 | . . 1 Garrison Access Hacks . | . . . Unauthorized Hacks . | . . . Terminals . | . . . Fabricators . | . . . Repair Stations . | . . . Recycling Units . | . . . Scanalyzers . | . . . Garrison Access . | . . . Data Cores Recovered . | . . . Used . | . . . Hacking Detections 2 | . 1 1 Full Trace Events 1 | . . 1 Feedback Events . | . . . Feedback Blocked . | . . . Robot Schematics Acquired . | . . . Robots Built . | . . . Matter . | . . . Time . | . . . Total Robot Build Rating . | . . . Part Schematics Acquired 1 | . . 1 Parts Built . | . . . Matter . | . . . Time . | . . . Total Part Build Rating . | . . . Parts Repaired . | . . . Time . | . . . Parts Recycled 6 | . 6 . Recycled Matter 116 | . 116 . Retrieved Matter 116 | . 116 . Retrieved Components . | . . . Parts Scanalyzed 1 | . . 1 Part Schematics Acquired 1 | . . 1 Parts Damaged 1 | . . 1 Bothacking | -11 -10 -9 ------------ Run | Scr Mat Mat Used RIF Installer . | . . . Robots Hacked . | . . . Non-combat . | . . . Combat . | . . . Robot Hacks Applied . | . . . Relay Couplers Released . | . . . Robots Rewired . | . . . Allies Hacked . | . . . Hacks Repelled . | . . . Allies | -11 -10 -9 -------- Run | Scr Mat Mat Total Allies . | . . . Largest Group . | . . . Highest-Rated Group . | . . . Highest-Rated Ally . | . . . Total Orders . | . . . Ally Attacks . | . . . Total Damage . | . . . Kills . | . . . Allies Corrupted . | . . . Allies Melted . | . . . Intel | -11 -10 -9 ------- Run | Scr Mat Mat Robot Analysis Total . | . . . Derelict Logs Recovered . | . . . Drone Launches . | . . . Drone Recoveries . | . . . Exploration | -11 -10 -9 ------------- Run | Scr Mat Mat Turns Passed 1365 | 56 323 986 Spaces Moved 690 | 40 194 456 Core 12 | 9 2 1 Treads 126 | . . 126 Legs 552 | 31 192 329 Wheels . | . . . Hover . | . . . Flight . | . . . Fastest Speed 50 | 50 120 120 Average Speed 131 | 104 120 138 Slowest Speed 250 | 120 200 250 Overloaded Moves . | . . . Propulsion Burnouts . | . . . Robots Hopped . | . . . Cave-ins Triggered . | . . . Exploration Rate (%) 21 | 3 25 36 Regions Visited 2 Branch Regions . Pre-discovered Areas . | . . . Known Exits Taken . | . . . Unknown Exits Taken 2 | 1 1 . Scrap Searched . | . . . Spaces Dug . | . . . Terrain Destroyed 49 | . 49 . Melee . | . . . Projectile . | . . . AOE 49 | . 49 . Actions | -11 -10 -9 --------- Run | Scr Mat Mat Total 955 | 54 249 652 Wait 17 | . 1 16 Move 688 | 39 193 456 Hop . | . . . Pick Up 51 | 7 12 32 Fast Attach 5 | . 3 2 Attach 24 | 6 5 13 Detach . | . . . Swap 22 | 1 5 16 Drop 16 | 1 1 14 Fire 114 | . 23 91 Melee 10 | . . 10 Ram . | . . . Kick 8 | . 6 2 Crush . | . . . Escape Stasis . | . . . Rewire . | . . . Trap . | . . . Miscellaneous . | . . . Route ------- -11/Scrapyard -10/Materials -9/Materials (discovered 1 exit: [*Mat]) History --------- Turn | Location | Event 3 | -11/Scrapyard | Discovered new exit (range 16) 57 | -11/Scrapyard | Entered Materials 179 | -10/Materials | Lost 3 parts (1p2w) 325 | -10/Materials | Discovered new exit (range 15) 380 | -10/Materials | Entered another Materials area 380 | -9/Materials | Evolved 2 slots: Utility x2 923 | -9/Materials | Build established: Scavenger-Mutant 1109 | -9/Materials | Discovered new exit (range 16) 1142 | -9/Materials | Core integrity fell below 50% 1156 | -9/Materials | Lost 5 parts (1p2n1u1w) 1331 | -9/Materials | Core integrity fell below 20% 1366 | -9/Materials | Destroyed by Y-45 Defender with Beam Rifle Last Messages --------------- Acquired 45 matter. Acquired Imp. Ion Engine. Dropped EMP Blaster. Dropped Med. Matter Pod. Acquired Aluminum Leg. U-05 Engineer lays Concrete. W-16 Scout destroyed. Beam Rifle destroyed. Shotgun destroyed. K-01 Serf collects debris. Aluminum Leg destroyed. Lgt. Armor Plating destroyed. Aluminum Leg destroyed. Destroyed Heat Sink. Y-45 Defender system corrupted by crushing effect. Y-45 Defender system terminally corrupted. Beam Rifle fried. Maul destroyed. Acquired Hvy. Assault Rifle. Imp. Ion Engine destroyed. Map ----- +----------------------------------------------------+ | ????????????????????????# ? | | ????????????????????????# ? | | ????????????????????????# #################/##?? | | ????????????????????????# #????????????????????? | | ????????????????????????# #????????????????????? | | ????????????????????????# #????????????????????? | | ???????????????????????## ##?????#######???????? | | ???????????????????????# ####### #???????? | | ???????????????????????# #???????? | | ???????????????????????# !!] #???????? | | ???????????????????????# % / * #???????? | | ???????????????????????# #######%[% #???????? | | ???????????????????????#######?????##!= ##???????? | | ????????????????????????????????????#! #????????? | | ????????????????????????????????????# #????????? | | ????????????????????????????????????# #????????? | | ????????????????????????????????????# #????????? | | ????????????????????????????????????# #????????? | | ????????????????????????############# #????????? | | ????????????????????????+ t # #????????? | | ????????????????????????# "" """ # #????????? | | ????????????????????????# "Y """ # # #??? | | ????????????????????????# "" """ %+* #??? | | ????????????????????????# = Y # # #??? | | ????????????????????????#%! # ######???? | | ????????????????????????#@ ] ! # #????????? | | ????????????????????????### ######### #????????? | | ??????????????????????????###???????# #????????? | | ????????????????????????????????????# #????????? | | ????????????????????????????????????+ #????????? | | ????????????????????????????????????? #????????? | | ????????????????????????????????????? #????????? | | ????????????????????????????????????? #????????? | | ????????????????????????????????????? ????????? | | ????????????????????????????????????? ????????? | | ????????????????????????????????????? ????????? | | ????????????????????????????????????? ?????????? | | ?????????????????????????????????????????????????? | | ?????????????????????????????????????????????????? | | ?????????????????????????????????????????????????? | | ?????????????????????????????????????????????????? | | ?????????????????????????????????????????????????? | | ?????????????????????????????????????????????????? | | ?????????????????????????????????????????????????? | | ?????????????????????????????????????????????????? | | ?????????????????????????????????????????????????? | | ?????????????????????????????????????????????????? | | | | | | | +----------------------------------------------------+ Best States ------------- Heat Dissipation 28 Energy Generation 12 Energy Capacity 265 Matter Stores 400 Matter Capacity 400 Sight Range 16 Terrain Scan Density 85 Armor Coverage 225 Evasion (%) 50 Targeting Accuracy 6 Recoil Reduction 2 Salvage Targeting 1 Item Schematics ----------------- Hvy. Assault Rifle | -9/Materials | Scanalyzed Robot Schematics ------------------ None Fabricated ------------ Nothing Alien Tech Used ----------------- None Achievements -------------- Shopping List Use The Force Challenges ------------ None Game ------ Seed CoolantRecyclingBay Manual? 0 Play Time 00:20:02 Cumulative 2.8 hours Start 2020.01.06 @ 04:01:42 End 2020.01.06 @ 04:20:06 Sessions 1 Manual Loads 0 Difficulty Rogue Special Mode None Game No. 9 Rogue 9 Adventurer 0 Explorer 0 Win Type - Total 0 Types 0/0/0/0/0/0/0 Lore% 2 Gallery% 7 Achievement% 6 Wizard Run 0 Options --------- ASCII 0 Keyboard 0 Movement Numpad Keybinds 0 Fullscreen 1 Font 18/SmallcapsGlow Map View 76x50 Tactical HUD 0 Map Filters NONE Filters NONE Steam 1 RUN: acd1dedd-fbb9-477a-ba51-b147aacd29d6